bitfinex/quotes_ETHUSD_20241108
["timestamp","ask_amount","ask_price","bid_price","bid_amount"]
[1731037562519,3.0,2896.1,2894.6,0.7508]
[1731037562846,12.28498273,2896.1,2894.6,0.7508]
[1731037564052,3.0,2896.2,2894.6,0.7508]
[1731037564353,3.0,2896.2,2894.8,0.7508]
[1731037566704,3.0,2896.6,2895.2,0.7848]
[1731037566912,12.28498273,2896.6,2895.2,0.7848]
[1731037567203,12.28498273,2896.6,2895.4,0.7848]
[1731037567625,9.28498273,2896.6,2895.4,0.7848]
[1731037567831,9.28498273,2896.6,2895.4,0.8538683]
[1731037568032,9.28498273,2896.6,2895.4,0.7848]
[1731037568244,0.05179868,2896.8,2895.5,0.86106804]
[1731037568416,0.05179868,2896.8,2895.7,0.792]
[1731037571118,3.0,2896.6,2895.7,0.792]
[1731037572051,0.05179868,2896.8,2895.7,0.792]
[1731037572359,0.55,2896.7,2895.7,0.792]
[1731037572703,3.0,2896.6,2895.7,0.792]
[1731037578772,0.05179868,2896.8,2895.7,0.792]
[1731037583373,0.05179868,2896.8,2895.8,3.34870286]
[1731037583577,0.05179868,2896.8,2896.0,0.7822]
[1731037583788,0.05179868,2896.8,2896.2,0.7822]
[1731037585971,0.05179868,2896.8,2896.5,0.7822]
[1731037588601,0.05179868,2896.8,2896.7,0.7898]
[1731037591411,3.0,2898.1,2896.7,3.34870286]
[1731037591606,3.0,2898.1,2896.9,0.8282]
[1731037595018,0.7798,2898.0,2896.9,0.8282]
[1731037596225,10.06478273,2898.0,2896.9,0.8282]
[1731037596421,16.96348559,2897.9,2896.9,0.8282]
[1731037598206,12.28498273,2897.9,2896.9,0.8282]
[1731037599406,3.0,2898.0,2896.9,0.8282]
[1731037601644,3.34870286,2897.6,2896.0,0.7714]
[1731037601793,0.7564,2897.4,2896.0,0.7714]
[1731037601995,0.7564,2897.4,2896.2,0.7714]
[1731037605480,3.0,2897.3,2896.2,0.7714]
[1731037609445,3.0,2897.3,2896.4,0.7613]
[1731037609805,9.28498273,2897.4,2896.6,0.7613]
[1731037610014,3.7943,2897.7,2896.6,0.7613]
[1731037610912,3.0,2897.7,2896.8,0.7613]
[1731037612486,1.15468961,2897.9,2896.8,0.7613]
[1731037612977,0.36038961,2897.9,2896.8,0.7613]
[1731037615961,0.36038961,2897.9,2896.9,0.06903187]
[1731037616157,0.36038961,2897.9,2896.3,3.34870286]
[1731037616158,0.36038961,2897.9,2897.0,0.8049]
[1731037616873,0.36038961,2897.9,2897.1,0.82892728]
[1731037618088,0.36038961,2897.9,2897.1,0.7599]
[1731037621480,0.36038961,2897.9,2896.6,3.17762956]
[1731037621687,0.07112177,2897.8,2896.6,3.17762956]
[1731037621892,0.07112177,2897.8,2896.7,0.38678966]
[1731037622207,0.07112177,2897.8,2896.7,0.31776296]
[1731037623963,0.07112177,2897.8,2896.4,0.01]
[1731037624600,0.07112177,2897.8,2896.5,0.7596]
[1731037626009,0.07112177,2897.8,2896.6,3.35870286]
[1731037626247,0.36038961,2897.9,2896.7,0.7922]
[1731037626533,0.36038961,2897.9,2896.8,0.7922]
[1731037628181,0.36038961,2897.9,2897.0,0.8292]
[1731037628368,0.07112177,2898.1,2897.2,0.8292]
[1731037628568,0.07112177,2898.2,2897.4,0.8292]
[1731037629965,0.07112177,2898.3,2897.4,0.8292]
[1731037630170,0.07112177,2898.3,2897.5,0.89822003]
[1731037630506,0.07112177,2898.6,2897.5,0.89822003]
[1731037632086,3.7559,2898.5,2897.5,0.8292]
[1731037632234,0.07112177,2898.4,2897.5,0.8292]
[1731037634281,0.7684,2898.3,2897.5,0.8292]
[1731037634503,0.07112177,2898.2,2897.5,0.8292]
[1731037634640,0.7684,2898.1,2896.5,0.8072]
[1731037634839,3.07112177,2898.0,2896.5,0.8072]
[1731037635941,0.7612,2897.9,2896.5,0.8072]
[1731037636142,0.07112177,2897.8,2896.6,0.7834]
[1731037636749,0.767,2897.7,2896.6,0.7834]
[1731037636942,0.07112177,2897.6,2896.6,0.7834]
[1731037639501,0.07112177,2897.6,2896.8,0.7834]
[1731037640672,0.07112177,2897.7,2896.8,0.7834]
[1731037644105,0.07112177,2897.8,2896.8,0.7834]
[1731037644687,0.07112177,2897.8,2896.9,0.06903369]
[1731037644901,0.07112177,2897.8,2897.0,0.763]
[1731037645898,9.28498273,2898.4,2897.2,0.763]
[1731037645899,1.26308433,2898.1,2897.2,0.763]
[1731037647209,0.90282177,2898.1,2897.2,0.763]
[1731037650468,0.07112177,2898.4,2897.3,0.06902346]
[1731037650763,0.7593,2898.3,2897.4,0.7752]
[1731037650969,0.07112177,2898.2,2897.4,0.7752]
[1731037652867,0.8131,2898.1,2896.8,0.8311]
[1731037653072,0.07112177,2898.0,2897.0,0.8311]
[1731037657761,0.8224,2897.9,2897.0,0.8311]
[1731037657960,0.07112177,2897.8,2897.0,0.8311]
[1731037660874,0.8301,2897.7,2896.8,0.8326]
[1731037661035,0.07112177,2897.6,2896.8,0.8326]
[1731037663247,0.7771,2897.5,2895.7,1.18791485]
[1731037663463,0.7771,2897.5,2894.7,0.41995029]
[1731037663464,3.34870286,2896.6,2895.2,0.7723]
[1731037663777,3.0,2896.2,2894.8,0.7723]
[1731037663976,0.7771,2895.8,2894.5,0.7723]
[1731037664176,0.07112177,2895.7,2894.5,0.7723]
[1731037664506,13.63318273,2895.6,2894.1,0.7676]
[1731037664657,0.07112177,2895.5,2894.2,0.06909354]
[1731037665058,0.7982,2895.4,2894.2,0.06909354]
[1731037665289,0.07112177,2895.3,2894.2,0.06909354]
[1731037665658,0.07112177,2895.3,2894.1,0.7676]
[1731037666067,3.07112177,2895.3,2894.1,0.7676]
[1731037666356,3.0,2895.0,2893.5,0.8007]
[1731037666562,0.8184,2894.8,2893.7,0.8007]
[1731037666756,3.0,2895.3,2893.7,0.8007]
[1731037666757,0.8184,2895.1,2893.7,4.14940286]
[1731037666982,0.07112177,2895.0,2893.7,3.34870286]
[1731037667185,0.07112177,2895.0,2893.8,0.8007]
[1731037667495,0.07112177,2895.0,2893.9,0.41494029]
[1731037667667,0.07112177,2895.0,2894.0,0.8007]
[1731037667995,0.8184,2895.1,2894.0,0.8007]
[1731037668380,0.07112177,2895.3,2894.0,0.8007]
[1731037671371,0.8184,2895.2,2894.0,0.8007]
[1731037671682,0.8184,2895.0,2894.0,0.42156403]
[1731037671869,0.07112177,2894.9,2893.7,0.8007]
[1731037672068,0.8184,2894.8,2893.7,0.8007]
[1731037672272,0.8184,2894.6,2893.4,0.8007]
[1731037672591,0.07112177,2894.5,2893.4,0.8007]
[1731037674606,0.7518,2894.4,2893.4,0.8007]
[1731037674785,0.07112177,2894.3,2893.4,0.8007]
[1731037676891,0.07112177,2894.3,2893.5,0.06910874]
[1731037677478,0.07112177,2894.3,2893.4,0.8007]
[1731037686119,0.7949,2894.2,2893.2,0.36019652]
[1731037686638,0.7612,2894.0,2893.2,0.36019652]
[1731037686923,0.07112177,2894.1,2892.8,0.8113]
[1731037686924,0.7684,2893.8,2892.8,0.8113]
[1731037687150,0.07112177,2893.7,2892.8,0.8113]
[1731037687938,0.7529,2893.6,2892.5,0.8243]
[1731037689355,0.7855,2893.4,2892.2,0.8154]
[1731037689634,0.85662177,2893.3,2891.9,1.4404]
[1731037691432,0.85662177,2893.3,2891.9,0.625]
[1731037691644,0.7825,2893.1,2891.9,0.625]
[1731037691826,0.7825,2892.6,2891.9,0.625]
[1731037692031,3.34870286,2892.7,2891.9,0.625]
[1731037692032,0.85362177,2892.5,2891.9,0.625]
[1731037692398,0.7825,2892.5,2891.9,0.625]
[1731037692897,0.7825,2892.5,2892.0,0.06914444]
[1731037693395,0.7825,2892.5,2891.9,0.625]
[1731037694542,0.7825,2892.5,2892.0,0.0691445]
[1731037695515,0.7825,2892.5,2891.9,0.625]
[1731037695849,0.7825,2892.5,2892.0,0.06914451]
[1731037696050,0.7825,2892.5,2891.9,0.625]
[1731037697252,0.7825,2892.5,2892.0,0.06914452]
[1731037697458,0.7825,2892.5,2891.9,0.625]
[1731037698454,0.7825,2892.5,2892.0,0.06914454]
[1731037698615,0.7934,2893.0,2892.0,0.06914454]
[1731037698814,0.7934,2893.0,2892.0,3.06914454]
[1731037699019,0.7934,2893.0,2892.3,3.0]
[1731037699269,0.8296,2893.6,2892.4,0.06913035]
[1731037699560,0.8296,2893.6,2892.7,0.7549]
[1731037700152,0.8296,2893.6,2892.8,0.06912378]
[1731037701124,0.8296,2893.6,2892.7,0.7549]
[1731037701747,0.8296,2893.6,2892.8,0.06912379]
[1731037702023,0.8296,2893.6,2892.6,3.0]
[1731037702355,0.8296,2893.6,2892.7,0.3]
[1731037702553,0.8296,2893.6,2892.4,0.8245]
[1731037703769,0.8296,2893.6,2892.4,0.89362355]
[1731037703971,0.8296,2893.6,2892.4,0.8245]
[1731037705367,0.8296,2893.6,2892.4,0.8145]
[1731037705575,0.7714,2893.4,2892.0,0.625]
[1731037705734,0.7697,2893.2,2892.0,0.625]
[1731037705930,0.7697,2893.0,2892.0,0.625]
[1731037706128,0.84082177,2892.9,2892.0,0.625]
[1731037706673,0.7697,2892.9,2892.0,0.625]
[1731037707972,0.7697,2892.9,2892.1,0.06914197]
[1731037708675,0.7697,2892.9,2892.1,0.7546]
[1731037708865,0.7697,2892.9,2892.2,0.43796]
[1731037711086,0.7697,2892.9,2892.3,0.06913341]
[1731037711377,0.7697,2892.9,2892.2,3.78666286]
[1731037712285,0.7697,2892.9,2892.2,0.43796]
[1731037712448,0.7697,2892.9,2892.1,0.7546]
[1731037715549,0.7697,2892.9,2892.2,0.06913341]
[1731037715750,0.7697,2892.9,2892.1,0.7546]
[1731037715982,0.7697,2892.9,2892.2,0.06913205]
[1731037716181,0.7761,2893.1,2892.4,3.0]
[1731037716384,0.7761,2893.1,2892.5,0.63487029]
[1731037719690,0.7761,2893.1,2892.2,3.89870286]
[1731037719991,0.7761,2893.1,2892.3,3.0]
[1731037720586,0.7761,2893.1,2892.6,3.0]
[1731037720897,0.7697,2893.7,2892.6,3.7653]
[1731037721054,0.7697,2893.7,2892.7,0.71140029]
[1731037721679,0.7697,2893.7,2892.9,3.0]
[1731037721879,0.7697,2893.7,2893.0,0.0691164]
[1731037723596,0.7697,2893.7,2892.9,3.0]
[1731037724498,0.7697,2893.7,2893.0,0.06911644]
[1731037724727,0.7697,2893.7,2893.1,0.30691164]
[1731037725019,0.7697,2893.7,2893.2,0.06911645]
[1731037725401,0.7697,2893.7,2893.1,0.30691164]
[1731037726381,0.7697,2893.7,2892.9,3.0]
[1731037726808,0.7697,2893.7,2892.3,0.30495327]
[1731037727082,0.8207,2893.5,2892.0,4.76920286]
[1731037727286,0.8207,2893.3,2892.1,0.01]
[1731037727478,0.8207,2893.3,2892.2,0.47792029]
[1731037727681,0.8207,2893.3,2892.0,1.73159202]
[1731037728005,0.8207,2893.3,2892.1,0.01]
[1731037728604,0.8207,2893.3,2892.1,3.01]
[1731037729977,0.8207,2893.3,2892.6,3.34870286]
[1731037731135,0.8207,2893.3,2892.7,3.0]
[1731037731283,0.8207,2893.3,2892.8,0.63487029]
[1731037736142,0.7994,2893.6,2893.0,3.34870286]
[1731037736632,0.7994,2893.6,2893.1,3.0]
[1731037736919,0.8215,2893.8,2892.8,0.63487029]
[1731037737133,0.05185173,2893.9,2892.5,3.0]
[1731037737134,0.89262177,2893.7,2892.5,3.0]
[1731037738128,0.89262177,2893.7,2892.2,3.0]
[1731037738348,0.89262177,2893.7,2892.1,3.34870286]
[1731037738639,0.89262177,2893.7,2892.2,0.50411448]
[1731037738797,0.89262177,2893.7,2892.4,3.34870286]
[1731037739139,0.89262177,2893.7,2892.5,0.06912767]
[1731037739294,0.89262177,2893.7,2892.4,3.34870286]
[1731037740030,0.89262177,2893.7,2892.5,0.06912458]
[1731037740333,0.89262177,2893.7,2892.6,0.34178274]
[1731037740530,0.89262177,2893.7,2892.7,0.06912459]
[1731037740716,0.89262177,2893.7,2892.7,0.0691246]
[1731037740921,0.89262177,2893.7,2892.6,0.34178274]
[1731037742240,0.89262177,2893.7,2892.3,3.0]
[1731037742606,3.34870286,2893.6,2892.0,0.625]
[1731037742936,0.8294,2893.4,2892.0,0.625]
[1731037743155,0.8294,2893.2,2892.0,0.625]
[1731037743305,0.8294,2893.0,2892.0,0.625]
[1731037743536,0.8294,2892.8,2892.0,0.625]
[1731037743770,0.90052177,2892.7,2892.0,0.625]
[1731037744743,0.8294,2892.7,2892.0,0.625]
[1731037746579,0.8294,2892.7,2892.1,3.41784761]
[1731037746731,0.8294,2892.7,2892.2,0.40428476]
[1731037747372,0.8294,2892.7,2892.0,0.625]
[1731037749470,0.7932,2892.5,2892.0,0.625]
[1731037749683,0.86432177,2892.4,2892.0,0.625]
[1731037750136,0.7932,2892.4,2892.0,0.625]
[1731037765243,0.7932,2892.4,2891.5,3.0]
[1731037765402,0.7518,2893.0,2892.0,3.34870286]
[1731037770295,0.7518,2893.0,2892.2,0.7823]
[1731037770769,0.7518,2893.0,2892.4,3.0]
[1731037772432,0.7518,2893.0,2892.5,0.06913062]
[1731037772671,0.7518,2893.0,2892.6,0.30691306]
[1731037773039,0.7518,2893.0,2892.6,0.3760392]
[1731037773466,0.8312,2893.7,2892.6,3.65561592]
[1731037773672,0.8312,2893.7,2892.7,3.7853]
[1731037774797,0.8312,2893.7,2892.9,3.89870286]
[1731037774985,0.8312,2893.7,2893.0,3.46589471]
[1731037775362,0.8312,2893.7,2893.0,3.39678225]
[1731037776555,0.8312,2893.7,2893.0,3.70599594]
[1731037776957,0.8312,2893.7,2893.0,3.39678225]
[1731037780090,0.8312,2893.7,2893.1,0.06911295]
[1731037780280,0.8312,2893.7,2893.2,4.48059238]
[1731037780798,0.05185173,2893.9,2893.3,3.55]
[1731037782622,0.8312,2894.9,2893.8,3.34870286]
[1731037782807,0.8312,2894.9,2893.7,0.7853]
[1731037782808,0.8312,2894.9,2894.3,3.34870286]
[1731037783008,0.8312,2894.9,2894.4,3.40395365]
[1731037783746,0.8312,2894.9,2894.4,3.33487029]
[1731037784349,0.8312,2894.9,2894.5,0.06908142]
[1731037784514,0.8312,2895.2,2894.6,3.34870286]
[1731037784712,0.8312,2895.2,2894.7,0.06907796]
[1731037784920,0.8312,2895.2,2894.8,0.34177808]
[1731037785228,0.8312,2895.2,2894.9,0.06907796]
[1731037786161,0.7707,2895.5,2895.0,3.0]
[1731037787351,0.7707,2895.5,2895.1,0.06906796]
[1731037787554,0.7546,2896.7,2895.2,0.3069068]
[1731037787717,0.7546,2896.5,2895.2,3.65560966]
[1731037787920,3.34870286,2896.9,2895.2,3.65560966]
[1731037787921,0.7546,2896.3,2895.2,3.65560966]
[1731037788118,0.7546,2896.3,2895.3,0.36556097]
[1731037788573,0.07112177,2896.2,2895.3,0.36556097]
[1731037788741,0.82572177,2896.2,2894.8,0.34177808]
[1731037790749,0.82572177,2896.2,2894.8,3.69048094]
[1731037791117,0.82572177,2896.2,2894.9,3.0]
[1731037793263,0.82572177,2896.2,2895.0,0.55]
[1731037793826,0.82572177,2896.2,2895.1,3.34870286]
[1731037794019,0.7546,2896.2,2895.2,3.45893131]
[1731037794643,0.7546,2896.2,2895.2,3.38987029]
[1731037795859,0.7546,2896.2,2895.2,0.38987029]
[1731037796095,0.7546,2896.2,2894.9,0.55]
[1731037797638,0.7546,2896.2,2894.9,3.0]
[1731037797838,0.85952177,2896.1,2894.9,3.0]
[1731037802463,0.85952177,2896.1,2894.8,0.34177808]
[1731037802675,0.85952177,2896.1,2894.5,10.75870286]
[1731037802872,0.85952177,2896.1,2895.1,3.34870286]
[1731037803563,0.7884,2896.1,2895.2,0.06906497]
[1731037803761,0.7884,2896.1,2895.2,3.0]
[1731037804076,0.7884,2896.1,2895.2,3.06906259]
[1731037804252,0.7884,2896.1,2895.3,0.64177655]
[1731037804447,0.7884,2896.1,2895.4,0.06905958]
[1731037805187,0.7884,2896.1,2895.5,0.06905855]
[1731037806183,0.7884,2896.1,2895.3,0.64177655]
[1731037807257,0.7884,2896.1,2895.4,0.06905857]
[1731037807993,0.7884,2896.1,2895.3,0.64177655]
[1731037808298,0.7884,2896.1,2895.4,0.51500623]
[1731037809565,0.7884,2896.1,2895.4,0.44594766]
[1731037811151,0.7884,2896.1,2895.5,0.06905728]
[1731037811466,0.7884,2896.1,2895.4,0.44594766]
[1731037812403,0.7884,2896.1,2895.5,0.06905733]
[1731037814376,0.7884,2896.1,2895.5,3.06905733]
[1731037814606,9.28498273,2897.4,2895.5,3.06905733]
[1731037814607,0.7691,2896.6,2896.0,6.34870286]
[1731037814905,0.7691,2896.6,2896.1,0.06904524]
[1731037816299,1.4541,2896.6,2896.1,0.06904524]
[1731037817205,0.685,2896.6,2896.3,3.34870286]
[1731037817501,0.685,2896.6,2896.4,0.48218825]
[1731037817679,0.685,2896.6,2896.4,0.41315029]
[1731037818970,0.685,2896.6,2896.1,3.0]
[1731037820104,0.685,2896.6,2896.2,0.06904159]
[1731037821783,0.685,2896.6,2896.2,0.06904181]
[1731037822094,0.685,2896.6,2896.1,3.0]
[1731037822302,0.685,2896.6,2896.2,0.06904142]
[1731037822513,0.685,2896.6,2896.3,3.655607]
[1731037822712,0.685,2896.6,2896.4,0.06903972]
[1731037823739,0.685,2896.6,2896.3,3.655607]
[1731037824119,0.685,2896.6,2896.4,0.06904082]
[1731037824427,0.685,2896.6,2896.3,3.655607]
[1731037824595,0.685,2896.6,2896.4,0.3655607]
[1731037826615,0.685,2896.6,2896.3,0.30690414]
[1731037827333,0.685,2896.6,2896.4,0.0690438]
[1731037827695,0.685,2896.6,2896.4,0.06904397]
[1731037828410,0.685,2896.6,2896.3,3.655607]
[1731037828791,0.685,2896.6,2896.4,0.06904098]
[1731037829030,0.685,2896.6,2896.5,0.3724648]
[1731037831033,0.685,2896.6,2896.5,0.9224648]
[1731037832729,0.685,2896.6,2896.5,1.23811324]
[1731037833242,0.685,2896.6,2896.5,0.3724648]
[1731037834136,1.4527,2896.6,2896.5,0.3724648]
[1731037836043,1.4527,2896.6,2895.9,0.8192]
[1731037836405,0.7822,2896.5,2895.8,3.34870286]
[1731037836615,0.7822,2896.5,2895.6,0.8254]
[1731037836839,0.7822,2896.5,2895.8,3.34870286]
[1731037837008,0.7822,2896.5,2896.1,3.34870286]
[1731037838408,0.7822,2896.5,2895.9,0.34177533]
[1731037838605,0.7822,2896.5,2896.0,0.06904396]
[1731037838821,0.7822,2896.5,2895.9,0.34177533]
[1731037840319,0.7822,2896.5,2895.7,3.0]
[1731037840928,0.7822,2896.5,2896.0,3.0]
[1731037841185,0.7822,2896.5,2896.1,0.06904569]
[1731037842232,0.7822,2896.5,2896.2,3.34870286]
[1731037842443,0.7822,2896.5,2896.3,0.06904429]
[1731037842745,0.685,2896.6,2896.3,0.06904429]
[1731037842746,0.685,2896.6,2896.4,0.34177472]
[1731037845644,0.7845,2896.5,2895.7,3.55]
[1731037846951,0.7845,2896.5,2895.8,0.06904757]
[1731037847310,0.7845,2896.5,2895.7,3.55]
[1731037853364,0.7845,2896.5,2895.7,3.0]
[1731037853981,0.7845,2896.5,2895.8,0.06904998]
[1731037854290,0.7845,2896.5,2895.9,3.65560786]
[1731037854581,0.7845,2896.5,2896.0,3.0]
[1731037854932,0.7845,2896.5,2896.2,3.34870286]
[1731037855168,0.7845,2896.5,2896.3,0.069044]
[1731037855467,0.7845,2896.5,2896.2,3.34870286]
[1731037855689,0.7845,2896.5,2896.3,0.33487029]
[1731037856234,0.685,2896.6,2896.4,0.06904402]
[1731037856439,0.685,2896.6,2896.3,3.33487029]
[1731037856673,0.585,2896.6,2896.3,3.33487029]
[1731037859352,0.585,2896.6,2896.3,0.33487029]
[1731037859674,0.585,2896.6,2896.0,3.0]
[1731037860087,0.8193,2896.5,2896.0,3.0]
[1731037861574,0.8193,2896.5,2895.9,0.306905]
[1731037861763,0.8193,2896.5,2895.6,0.31175135]
[1731037861764,0.8193,2896.5,2895.7,3.34870286]
[1731037865178,0.8193,2896.5,2895.8,0.06905108]
[1731037865690,0.8193,2896.5,2896.0,3.34870286]
[1731037867394,0.8193,2896.5,2896.1,3.06904625]
[1731037867564,0.585,2896.6,2896.4,3.0]
[1731037868261,0.485,2896.6,2896.4,3.0]
[1731037871764,0.485,2896.6,2896.5,0.55]
[1731037873563,0.485,2896.6,2896.4,3.0]
[1731037875334,0.485,2896.6,2896.5,0.0690384]
[1731037875494,0.485,2896.6,2896.5,0.71081253]
[1731037881732,0.485,2896.6,2896.5,0.64177413]
[1731037882564,0.485,2896.6,2896.5,1.19177413]
[1731037885036,0.485,2896.6,2896.5,2.00907413]
[1731037885538,0.485,2896.6,2896.5,6.55106839]
[1731037885710,0.7549,2897.4,2897.3,1.54199426]
[1731037886310,0.12293022,2898.4,2897.3,1.54199426]
[1731037886532,0.7549,2898.3,2897.3,1.54199426]
[1731037886717,0.7549,2898.1,2897.3,1.54199426]
[1731037886915,0.82602177,2898.0,2897.3,1.54199426]
[1731037887319,0.82602177,2898.0,2896.9,3.34099735]
[1731037887527,0.7549,2898.0,2897.0,3.45811884]
[1731037888246,0.7549,2898.0,2897.1,0.55]
[1731037888404,0.7549,2898.0,2897.0,3.38909974]
[1731037889860,0.8132,2897.9,2897.0,0.38909974]
[1731037890012,0.8132,2897.9,2897.0,3.0]
[1731037890850,0.8132,2897.9,2897.1,0.06901874]
[1731037891442,0.8132,2897.9,2897.0,3.0]
[1731037895959,0.8132,2897.9,2897.1,0.06901885]
[1731037897550,0.8132,2897.9,2897.1,0.06901523]
[1731037897751,0.8132,2897.9,2897.2,0.30690152]
[1731037903465,0.8132,2897.9,2897.3,1.3173]
[1731037904956,0.07112177,2898.8,2897.6,3.0]
[1731037904957,0.7633,2898.1,2897.6,3.0]
[1731037905162,0.7633,2898.1,2897.7,0.55]
[1731037905366,0.7633,2899.0,2897.8,0.355]
[1731037905563,0.7633,2898.8,2897.8,0.355]
[1731037906071,0.8126,2898.6,2897.8,0.355]
[1731037906293,0.8126,2898.6,2897.6,3.0]
[1731037907765,0.8126,2898.6,2897.7,0.06900587]
[1731037908168,0.8126,2898.6,2897.6,3.0]
[1731037908377,0.8126,2898.6,2897.7,0.63409974]
[1731037909032,0.8126,2898.6,2897.4,0.55]
[1731037909554,0.8126,2898.6,2897.6,1.54144768]
[1731037911444,0.8126,2898.6,2897.8,1.54144768]
[1731037911761,0.8126,2898.6,2897.9,0.06900592]
[1731037912563,0.8126,2898.6,2897.8,1.54144768]
[1731037913467,0.8126,2898.6,2898.0,1.54144768]
[1731037913975,0.8126,2898.6,2898.1,0.06899881]
[1731037916159,0.8126,2898.6,2898.2,1.54144768]
[1731037916970,0.8126,2898.6,2898.4,1.54144768]
[1731037917990,0.07112177,2899.6,2898.4,1.54144768]
[1731037918192,0.7593,2898.8,2898.4,1.54144768]
[1731037920709,0.7593,2898.8,2898.6,1.54144768]
[1731037920917,0.7594,2899.6,2898.6,1.54144768]
[1731037921213,0.12287327,2899.7,2898.2,0.8072]
[1731037921214,0.7594,2899.4,2898.8,1.54144768]
[1731037921372,0.7594,2899.4,2899.2,1.54144768]
[1731037921573,0.7594,2899.6,2899.2,1.54144768]
[1731037921804,0.6594,2899.6,2899.4,1.54144768]
[1731037922312,0.0517515,2899.7,2899.4,1.54144768]
[1731037922470,0.0517515,2899.7,2899.5,0.23230477]
[1731037923509,0.0517515,2899.7,2899.1,3.33592067]
[1731037923676,0.0517515,2899.7,2898.9,3.0]
[1731037924184,0.0517515,2899.7,2898.7,0.55]
[1731037924872,0.7594,2899.6,2898.7,0.55]
[1731037925113,0.7594,2899.6,2898.8,0.355]
[1731037926776,0.7594,2899.6,2898.8,0.42397533]
[1731037926974,0.7594,2899.6,2898.8,0.42397527]
[1731037927392,0.7594,2899.6,2898.8,3.75989594]
[1731037927613,0.7594,2899.6,2898.9,3.0]
[1731037927778,0.7594,2899.6,2899.0,0.67598959]
[1731037928114,0.7594,2899.6,2899.1,0.0689753]
[1731037928315,0.7594,2899.6,2899.0,0.67598959]
[1731037929293,0.7594,2899.6,2898.7,0.55]
[1731037930322,0.7594,2899.6,2898.2,0.7955]
[1731037930480,0.7869,2899.4,2898.2,0.7955]
[1731037930680,0.7869,2899.4,2898.2,4.13142067]
[1731037930905,0.7869,2899.4,2898.3,0.41314207]
[1731037931523,0.7869,2899.4,2898.8,3.33592067]
[1731037931728,0.7869,2899.4,2898.9,0.06897678]
[1731037932735,0.0517515,2899.7,2899.0,0.55]
[1731037933052,0.0517515,2899.7,2899.2,3.88592067]
[1731037933053,0.8669515,2899.7,2899.2,3.88592067]
[1731037933194,0.8669515,2899.7,2899.1,0.55]
[1731037933527,0.8669515,2899.7,2899.0,0.3]
[1731037935210,0.0517515,2899.7,2899.1,0.89037215]
[1731037935415,0.0517515,2899.7,2899.1,0.8214]
[1731037935615,0.0517515,2899.7,2899.1,0.55]
[1731037935815,0.7527,2899.6,2899.0,0.3]
[1731037936045,0.7527,2899.6,2899.1,0.74573207]
[1731037937504,0.7527,2899.6,2899.2,0.06897299]
[1731037937714,0.0517515,2899.7,2899.3,0.55]
[1731037943052,0.0517515,2899.7,2899.1,0.74573207]
[1731037944749,0.0517515,2899.7,2899.3,0.55]
[1731037945044,0.0517515,2899.7,2899.4,0.38859207]
[1731037947252,0.7527,2899.8,2899.4,0.38859207]
[1731037947558,0.7722,2900.0,2899.5,3.33592067]
[1731037951752,0.7722,2900.0,2899.6,0.06896202]
[1731037951926,0.7722,2900.0,2899.5,3.33592067]
[1731037952121,0.7722,2900.0,2899.6,0.06896149]
[1731037952427,0.7722,2900.0,2899.7,0.34048822]
[1731037952762,0.7722,2900.0,2899.8,3.4048818]
[1731037953060,0.7722,2900.0,2899.8,3.33592067]
[1731037955967,0.7722,2900.0,2899.9,0.06895965]
[1731037956175,0.7722,2900.0,2899.8,3.33592067]
[1731037956464,0.8097,2900.3,2899.9,0.43660137]
[1731037956629,0.8097,2900.3,2899.9,0.36764089]
[1731037957842,0.8097,2900.3,2899.6,3.0]
[1731037958872,0.8097,2900.3,2899.7,0.06895941]
[1731037959338,0.7851,2901.0,2900.2,3.33592067]
[1731037959539,0.7851,2901.0,2900.5,3.33592067]
[1731037959747,0.7851,2901.0,2900.6,0.33359207]
[1731037960532,0.7851,2901.0,2900.2,3.33592067]
[1731037961473,0.7851,2901.0,2899.9,4.12452067]
[1731037961642,0.7851,2901.0,2899.9,3.33592067]
[1731037961962,0.7766,2900.8,2899.9,3.33592067]
[1731037962164,0.7766,2900.8,2900.0,0.33359207]
[1731037970579,0.09112177,2901.3,2900.0,0.33359207]
[1731037970580,0.8035,2900.6,2900.0,0.33359207]
[1731037970784,0.07112177,2900.5,2899.9,3.33592067]
[1731037971082,0.8035,2900.4,2899.9,3.33592067]
[1731037972282,0.80238636,2900.4,2899.9,3.33592067]
[1731037973982,0.80238636,2900.4,2900.0,0.06896122]
[1731037974187,0.80238636,2900.4,2899.9,3.33592067]
[1731037974495,0.80238636,2900.4,2900.0,0.33359207]
[1731037977682,0.80238636,2900.4,2900.0,0.40254879]
[1731037978778,0.80238636,2900.4,2900.0,0.33359207]
[1731037978979,0.8193,2900.2,2899.7,3.0]
[1731037979287,0.8193,2900.2,2899.3,0.7829]
[1731037979288,0.8193,2900.2,2899.3,3.33592067]
[1731037983086,0.8193,2900.2,2899.6,3.33592067]
[1731037983687,0.8193,2900.2,2899.9,3.33592067]
[1731037985096,0.8193,2900.2,2899.6,3.33592067]
[1731037985262,0.8193,2900.2,2899.6,4.04587274]
[1731037985891,0.8193,2900.2,2899.7,0.06896463]
[1731037986581,0.8193,2900.2,2899.6,4.04587274]
[1731037987194,0.8193,2900.2,2899.6,0.70995207]
[1731037987366,0.8193,2900.2,2899.7,0.06896462]
[1731037988283,0.8193,2900.2,2899.6,0.70995207]
[1731037988501,0.8193,2900.2,2899.7,0.37099521]
[1731037989116,0.8193,2900.2,2899.7,0.43996006]
[1731037991199,0.8193,2900.2,2899.7,3.77588073]
[1731037991722,0.7698,2901.0,2899.7,3.70691588]
[1731037992016,0.7698,2900.8,2900.0,3.33592067]
[1731037992313,0.7698,2900.8,2900.1,0.55]
[1731037994287,0.7698,2900.8,2900.3,3.33592067]
[1731037994486,0.7949,2901.4,2900.6,3.33592067]
[1731037994689,0.7949,2901.4,2900.7,0.33359207]
[1731037995250,0.7971,2901.2,2900.7,0.33359207]